[Event "Titled Tuesday Blitz February 14 Late 2023"]
[White "Mekhitarian, Krikor Sevag"]
[Black "Prem, Pranav"]
[WhiteFideId "2107660"]
[BlackFideId "30901057"]
[WhiteElo "2537"]
[BlackElo "2061"]
[Result "1-0"]
[Round "05"]
[TimeControl "180+2"]
[Date "2023.02.14"]
[WhiteClock "0:00:06"]
[BlackClock "0:00:02"]

1. Nf3 {[%clk 0:03:00]}  d5 {[%clk 0:02:58]} 2. c4 {[%clk 0:03:01]}  e6 {[%clk 0:02:57]} 3. e3 {[%clk 0:02:59]}  Nf6 {[%clk 0:02:57]} 4. Nc3 {[%clk 0:02:51]}  Be7 {[%clk 0:02:52]} 5. b3 {[%clk 0:02:50]}  O-O {[%clk 0:02:51]} 6. Bb2 {[%clk 0:02:50]}  c5 {[%clk 0:02:43]} 7. cxd5 {[%clk 0:02:50]}  exd5 {[%clk 0:02:44]} 8. d4 {[%clk 0:02:50]}  b6 {[%clk 0:02:45]} 9. Rc1 {[%clk 0:02:46]}  Bb7 {[%clk 0:02:38]} 10. Bd3 {[%clk 0:02:42]}  Nbd7 {[%clk 0:02:38]} 11. O-O {[%clk 0:02:41]}  Rc8 {[%clk 0:02:33]} 12. Bf5 {[%clk 0:02:36]}  g6 {[%clk 0:02:33]} 13. Bh3 {[%clk 0:02:36]}  Ra8 {[%clk 0:02:28]} 14. dxc5 {[%clk 0:02:17]}  bxc5 {[%clk 0:02:29]} 15. Na4 {[%clk 0:02:17]}  Ne4 {[%clk 0:02:16]} 16. Qc2 {[%clk 0:01:59]}  f5 {[%clk 0:02:08]} 17. Rfd1 {[%clk 0:01:57]}  Nb6 {[%clk 0:01:54]} 18. Nc3 {[%clk 0:01:50]}  Nf6 {[%clk 0:01:21]} 19. Ne2 {[%clk 0:01:44]}  Ne4 {[%clk 0:01:20]} 20. g3 {[%clk 0:01:40]}  Qd6 {[%clk 0:01:12]} 21. Bg2 {[%clk 0:01:40]}  Rfd8 {[%clk 0:01:10]} 22. Nf4 {[%clk 0:01:37]}  Rac8 {[%clk 0:01:08]} 23. h4 {[%clk 0:01:31]}  Bf6 {[%clk 0:01:04]} 24. Nd3 {[%clk 0:01:22]}  Qf8 {[%clk 0:00:40]} 25. a4 {[%clk 0:00:58]}  c4 {[%clk 0:00:38]} 26. bxc4 {[%clk 0:00:58]}  dxc4 {[%clk 0:00:35]} 27. Nf4 {[%clk 0:00:51]}  c3 {[%clk 0:00:34]} 28. Ba1 {[%clk 0:00:51]}  Qf7 {[%clk 0:00:32]} 29. Nd4 {[%clk 0:00:49]}  Bxd4 {[%clk 0:00:30]} 30. exd4 {[%clk 0:00:49]}  Qc4 {[%clk 0:00:24]} 31. d5 {[%clk 0:00:39]}  Nxd5 {[%clk 0:00:20]} 32. Nxd5 {[%clk 0:00:36]}  Bxd5 {[%clk 0:00:20]} 33. a5 {[%clk 0:00:24]}  Qc5 {[%clk 0:00:20]} 34. Re1 {[%clk 0:00:20]}  Qxa5 {[%clk 0:00:16]} 35. Qd3 {[%clk 0:00:18]}  Qc5 {[%clk 0:00:15]} 36. Qf3 {[%clk 0:00:18]}  Nf6 {[%clk 0:00:12]} 37. Qf4 {[%clk 0:00:18]}  Bxg2 {[%clk 0:00:12]} 38. Kxg2 {[%clk 0:00:19]}  Ne4 {[%clk 0:00:13]} 39. Re3 {[%clk 0:00:18]}  Rd2 {[%clk 0:00:13]} 40. Rf3 {[%clk 0:00:15]}  Qd4 {[%clk 0:00:09]} 41. h5 {[%clk 0:00:15]}  a5 {[%clk 0:00:07]} 42. Qh6 {[%clk 0:00:12]}  Qg7 {[%clk 0:00:07]} 43. Qe3 {[%clk 0:00:13]}  Qd4 {[%clk 0:00:06]} 44. Qf4 {[%clk 0:00:13]}  Qg7 {[%clk 0:00:06]} 45. Re1 {[%clk 0:00:10]}  Rc2 {[%clk 0:00:04]} 46. Rd3 {[%clk 0:00:09]}  Ra2 {[%clk 0:00:01]} 47. h6 {[%clk 0:00:07]}  Qf6 {[%clk 0:00:02]} 48. Rd7 {[%clk 0:00:07]}  Rxa1 {[%clk 0:00:02]} 49. Rg7+ {[%clk 0:00:08]}  Qxg7 {[%clk 0:00:01]} 50. hxg7 {[%clk 0:00:07]}  Rd1 {[%clk 0:00:01]} 51. Rxd1 {[%clk 0:00:07]}  c2 {[%clk 0:00:02]} 52. Rc1 {[%clk 0:00:07]}  Nc3 {[%clk 0:00:02]} 53. Qe5 {[%clk 0:00:06]} 1-0


[Site "https://www.chess.com"]

[Event "Titled Tuesday Blitz February 14 Late 2023"]
[White "Defend, Balint"]
[Black "Christiansen, Johan-Sebastian"]
[WhiteFideId "17004853"]
[BlackFideId "1512668"]
[WhiteElo "1673"]
[BlackElo "2579"]
[Result "0-1"]
[Round "05"]
[TimeControl "180+2"]
[Date "2023.02.14"]
[WhiteClock "0:00:53"]
[BlackClock "0:01:10"]

1. e4 {[%clk 0:03:00]}  e5 {[%clk 0:02:58]} 2. Nf3 {[%clk 0:03:00]}  Nc6 {[%clk 0:02:58]} 3. Bc4 {[%clk 0:03:00]}  Nf6 {[%clk 0:02:58]} 4. d4 {[%clk 0:03:01]}  exd4 {[%clk 0:02:58]} 5. e5 {[%clk 0:03:01]}  d5 {[%clk 0:02:51]} 6. Bb5 {[%clk 0:03:02]}  Ne4 {[%clk 0:02:50]} 7. Nxd4 {[%clk 0:03:02]}  Bc5 {[%clk 0:02:50]} 8. Be3 {[%clk 0:03:01]}  O-O {[%clk 0:02:50]} 9. Nxc6 {[%clk 0:03:02]}  bxc6 {[%clk 0:02:50]} 10. Bxc5 {[%clk 0:03:03]}  Nxc5 {[%clk 0:02:49]} 11. Bxc6 {[%clk 0:03:03]}  Rb8 {[%clk 0:02:49]} 12. Qxd5 {[%clk 0:03:00]}  Qe7 {[%clk 0:02:44]} 13. O-O {[%clk 0:03:00]}  Rxb2 {[%clk 0:02:44]} 14. Na3 {[%clk 0:02:02]}  Rd8 {[%clk 0:02:36]} 15. Qf3 {[%clk 0:02:02]}  Be6 {[%clk 0:02:20]} 16. Qc3 {[%clk 0:01:55]}  Rb6 {[%clk 0:02:15]} 17. Bf3 {[%clk 0:01:54]}  h6 {[%clk 0:01:58]} 18. Rfd1 {[%clk 0:01:52]}  Rdb8 {[%clk 0:01:53]} 19. Nc4 {[%clk 0:01:50]}  Na4 {[%clk 0:01:53]} 20. Qa3 {[%clk 0:01:26]}  Qxa3 {[%clk 0:01:13]} 21. Nxa3 {[%clk 0:01:27]}  Nc3 {[%clk 0:01:14]} 22. Rd4 {[%clk 0:01:16]}  Ra6 {[%clk 0:01:10]} 23. Nc4 {[%clk 0:00:53]}  Ra4 {[%clk 0:01:10]} 0-1


[Site "https://www.chess.com"]

[Event "Titled Tuesday Blitz February 14 Late 2023"]
[White "Remolar Gallen, Jose"]
[Black "Tanenbaum, Zachary"]
[WhiteFideId "2215187"]
[BlackFideId "2060850"]
[WhiteElo "2285"]
[BlackElo "2261"]
[Result "1-0"]
[Round "05"]
[TimeControl "180+2"]
[Date "2023.02.14"]
[WhiteClock "0:00:08"]
[BlackClock "0:00:01"]

1. d4 {[%clk 0:03:00]}  d5 {[%clk 0:02:55]} 2. c4 {[%clk 0:02:58]}  dxc4 {[%clk 0:02:54]} 3. Nf3 {[%clk 0:02:57]}  Nf6 {[%clk 0:02:54]} 4. e3 {[%clk 0:02:54]}  Bg4 {[%clk 0:02:54]} 5. Bxc4 {[%clk 0:02:48]}  e6 {[%clk 0:02:55]} 6. h3 {[%clk 0:02:47]}  Bh5 {[%clk 0:02:54]} 7. O-O {[%clk 0:02:45]}  Nbd7 {[%clk 0:02:54]} 8. Nc3 {[%clk 0:02:44]}  Bb4 {[%clk 0:02:53]} 9. Bd2 {[%clk 0:02:35]}  O-O {[%clk 0:02:50]} 10. a3 {[%clk 0:02:32]}  Bxc3 {[%clk 0:02:48]} 11. bxc3 {[%clk 0:02:28]}  c5 {[%clk 0:02:45]} 12. Rb1 {[%clk 0:02:19]}  Bg6 {[%clk 0:02:44]} 13. Rb2 {[%clk 0:02:06]}  Rc8 {[%clk 0:02:40]} 14. Qe2 {[%clk 0:01:58]}  Nb6 {[%clk 0:02:29]} 15. Bb3 {[%clk 0:01:49]}  Qe7 {[%clk 0:02:21]} 16. Ra1 {[%clk 0:01:42]}  Ne4 {[%clk 0:02:14]} 17. Be1 {[%clk 0:01:34]}  cxd4 {[%clk 0:02:00]} 18. cxd4 {[%clk 0:01:31]}  Nc3 {[%clk 0:02:00]} 19. Qf1 {[%clk 0:01:15]}  Nbd5 {[%clk 0:01:51]} 20. Ne5 {[%clk 0:01:13]}  Be4 {[%clk 0:01:40]} 21. Bd2 {[%clk 0:01:12]}  f6 {[%clk 0:01:27]} 22. Nd3 {[%clk 0:01:12]}  b6 {[%clk 0:01:25]} 23. f3 {[%clk 0:01:10]}  Bxd3 {[%clk 0:01:15]} 24. Qxd3 {[%clk 0:01:09]}  f5 {[%clk 0:01:13]} 25. Rc2 {[%clk 0:00:50]}  Qg5 {[%clk 0:00:22]} 26. Re1 {[%clk 0:00:49]}  Qg3 {[%clk 0:00:20]} 27. Rxc3 {[%clk 0:00:39]}  Nxc3 {[%clk 0:00:12]} 28. Bxe6+ {[%clk 0:00:39]}  Kh8 {[%clk 0:00:12]} 29. Bxc8 {[%clk 0:00:32]}  Nd5 {[%clk 0:00:08]} 30. Bxf5 {[%clk 0:00:30]}  Re8 {[%clk 0:00:07]} 31. Be4 {[%clk 0:00:29]}  Nf6 {[%clk 0:00:07]} 32. d5 {[%clk 0:00:27]}  Nxe4 {[%clk 0:00:05]} 33. fxe4 {[%clk 0:00:28]}  Rf8 {[%clk 0:00:05]} 34. Rf1 {[%clk 0:00:27]}  Re8 {[%clk 0:00:06]} 35. Bc3 {[%clk 0:00:25]}  h6 {[%clk 0:00:06]} 36. Qd4 {[%clk 0:00:23]}  Kh7 {[%clk 0:00:05]} 37. e5 {[%clk 0:00:23]}  Rd8 {[%clk 0:00:04]} 38. Qe4+ {[%clk 0:00:17]}  Kg8 {[%clk 0:00:03]} 39. e6 {[%clk 0:00:17]}  Rc8 {[%clk 0:00:03]} 40. e7 {[%clk 0:00:16]}  Re8 {[%clk 0:00:03]} 41. Rf8+ {[%clk 0:00:10]}  Rxf8 {[%clk 0:00:03]} 42. Qe6+ {[%clk 0:00:10]}  Kh7 {[%clk 0:00:01]} 43. exf8=Q {[%clk 0:00:09]}  Qg6 {[%clk 0:00:01]} 44. Qfg8# {[%clk 0:00:08]} 1-0


[Site "https://www.chess.com"]

[Event "Titled Tuesday Blitz February 14 Late 2023"]
[White "Kielinkei"]
[Black "Barp, Alberto"]
[BlackFideId "872555"]
[WhiteElo "2399"]
[BlackElo "2432"]
[Result "0-1"]
[Round "05"]
[TimeControl "180+2"]
[Date "2023.02.14"]
[WhiteClock "0:00:33"]
[BlackClock "0:00:19"]

1. d4 {[%clk 0:03:00]}  e6 {[%clk 0:02:49]} 2. c4 {[%clk 0:03:00]}  Nf6 {[%clk 0:02:48]} 3. g3 {[%clk 0:02:59]}  d5 {[%clk 0:02:36]} 4. Bg2 {[%clk 0:02:58]}  Bb4+ {[%clk 0:02:32]} 5. Nd2 {[%clk 0:02:56]}  O-O {[%clk 0:02:25]} 6. Nf3 {[%clk 0:02:54]}  dxc4 {[%clk 0:02:22]} 7. O-O {[%clk 0:02:53]}  b5 {[%clk 0:02:18]} 8. a4 {[%clk 0:02:45]}  c6 {[%clk 0:02:18]} 9. Qc2 {[%clk 0:02:18]}  a5 {[%clk 0:02:07]} 10. b3 {[%clk 0:01:51]}  cxb3 {[%clk 0:01:48]} 11. Nxb3 {[%clk 0:01:51]}  bxa4 {[%clk 0:01:44]} 12. Rxa4 {[%clk 0:01:50]}  Ba6 {[%clk 0:01:45]} 13. Bd2 {[%clk 0:01:22]}  Bb5 {[%clk 0:01:21]} 14. Bxb4 {[%clk 0:01:16]}  Bxa4 {[%clk 0:01:20]} 15. Bxf8 {[%clk 0:01:16]}  Qxf8 {[%clk 0:01:21]} 16. Qa2 {[%clk 0:01:12]}  Bb5 {[%clk 0:01:17]} 17. Ne5 {[%clk 0:01:08]}  Nfd7 {[%clk 0:01:15]} 18. Rc1 {[%clk 0:00:51]}  a4 {[%clk 0:01:08]} 19. Nc5 {[%clk 0:00:50]}  Nxe5 {[%clk 0:01:00]} 20. dxe5 {[%clk 0:00:51]}  Na6 {[%clk 0:00:57]} 21. Qa3 {[%clk 0:00:41]}  Nxc5 {[%clk 0:00:54]} 22. Rxc5 {[%clk 0:00:42]}  Qd8 {[%clk 0:00:33]} 23. Bf3 {[%clk 0:00:35]}  Qd1+ {[%clk 0:00:28]} 24. Kg2 {[%clk 0:00:35]}  Bxe2 {[%clk 0:00:23]} 25. Bxc6 {[%clk 0:00:33]}  Qf1# {[%clk 0:00:19]} 0-1


[Site "https://www.chess.com"]

[Event "Titled Tuesday Blitz February 14 Late 2023"]
[White "Yoo, Christopher Woojin"]
[Black "Bujisho, Benjamin"]
[WhiteFideId "30909694"]
[BlackFideId "608610"]
[WhiteElo "2607"]
[BlackElo "2338"]
[Result "1/2-1/2"]
[Round "05"]
[TimeControl "180+2"]
[Date "2023.02.14"]
[WhiteClock "0:00:22"]
[BlackClock "0:00:55"]

1. Nf3 {[%clk 0:02:50]}  Nf6 {[%clk 0:02:58]} 2. c4 {[%clk 0:02:50]}  e6 {[%clk 0:02:58]} 3. Nc3 {[%clk 0:02:50]}  d5 {[%clk 0:02:58]} 4. e3 {[%clk 0:02:51]}  c5 {[%clk 0:02:57]} 5. cxd5 {[%clk 0:02:50]}  Nxd5 {[%clk 0:02:57]} 6. Bc4 {[%clk 0:02:46]}  Nxc3 {[%clk 0:02:55]} 7. bxc3 {[%clk 0:02:45]}  Nd7 {[%clk 0:02:51]} 8. d4 {[%clk 0:02:45]}  cxd4 {[%clk 0:02:49]} 9. cxd4 {[%clk 0:02:44]}  Bb4+ {[%clk 0:02:49]} 10. Bd2 {[%clk 0:02:43]}  Qa5 {[%clk 0:02:43]} 11. O-O {[%clk 0:02:41]}  Bxd2 {[%clk 0:02:41]} 12. Qxd2 {[%clk 0:02:39]}  Qxd2 {[%clk 0:02:41]} 13. Nxd2 {[%clk 0:02:39]}  Ke7 {[%clk 0:02:35]} 14. Be2 {[%clk 0:02:25]}  b6 {[%clk 0:02:30]} 15. Rfc1 {[%clk 0:02:23]}  Bb7 {[%clk 0:02:30]} 16. Rc7 {[%clk 0:02:23]}  Rab8 {[%clk 0:02:28]} 17. Bb5 {[%clk 0:02:19]}  Rhd8 {[%clk 0:02:25]} 18. Nc4 {[%clk 0:02:03]}  f6 {[%clk 0:01:44]} 19. f3 {[%clk 0:01:40]}  a6 {[%clk 0:01:22]} 20. Bxd7 {[%clk 0:01:38]}  Rxd7 {[%clk 0:01:20]} 21. Rxd7+ {[%clk 0:01:39]}  Kxd7 {[%clk 0:01:21]} 22. Nxb6+ {[%clk 0:01:39]}  Kc7 {[%clk 0:01:20]} 23. Nc4 {[%clk 0:01:27]}  Bd5 {[%clk 0:01:19]} 24. Rc1 {[%clk 0:01:20]}  Kd7 {[%clk 0:01:10]} 25. a3 {[%clk 0:00:27]}  Rb3 {[%clk 0:01:05]} 26. e4 {[%clk 0:00:26]}  Bxc4 {[%clk 0:01:03]} 27. Rxc4 {[%clk 0:00:27]}  Rxa3 {[%clk 0:01:04]} 28. Rb4 {[%clk 0:00:28]}  Kc7 {[%clk 0:01:00]} 29. Rc4+ {[%clk 0:00:25]}  Kd7 {[%clk 0:00:59]} 30. Rb4 {[%clk 0:00:25]}  Kc7 {[%clk 0:00:55]} 31. Rc4+ {[%clk 0:00:22]}  Kd7 {[%clk 0:00:55]} 1/2-1/2


[Site "https://www.chess.com"]

[Event "Titled Tuesday Blitz February 14 Late 2023"]
[White "Gharibyan, Mamikon"]
[Black "Baghdasaryan, Vahe"]
[WhiteFideId "13308300"]
[BlackFideId "13303139"]
[WhiteElo "2500"]
[BlackElo "2257"]
[Result "1-0"]
[Round "05"]
[TimeControl "180+2"]
[Date "2023.02.14"]
[WhiteClock "0:00:09"]
[BlackClock "0:00:02"]

1. e4 {[%clk 0:02:48]}  c5 {[%clk 0:02:59]} 2. Nf3 {[%clk 0:02:41]}  e6 {[%clk 0:02:57]} 3. g3 {[%clk 0:02:41]}  a6 {[%clk 0:02:56]} 4. Bg2 {[%clk 0:02:40]}  Nc6 {[%clk 0:02:56]} 5. O-O {[%clk 0:02:39]}  b5 {[%clk 0:02:56]} 6. d4 {[%clk 0:02:38]}  cxd4 {[%clk 0:02:56]} 7. Nxd4 {[%clk 0:02:39]}  Bb7 {[%clk 0:02:56]} 8. Nc3 {[%clk 0:02:38]}  Bc5 {[%clk 0:02:40]} 9. Nb3 {[%clk 0:02:21]}  Ba7 {[%clk 0:02:35]} 10. Qg4 {[%clk 0:02:04]}  Qf6 {[%clk 0:02:16]} 11. h4 {[%clk 0:01:42]}  h6 {[%clk 0:01:46]} 12. Bf4 {[%clk 0:01:33]}  Nge7 {[%clk 0:01:42]} 13. e5 {[%clk 0:01:08]}  Qf5 {[%clk 0:01:40]} 14. Qxf5 {[%clk 0:00:59]}  Nxf5 {[%clk 0:01:40]} 15. a4 {[%clk 0:00:52]}  b4 {[%clk 0:01:39]} 16. Ne4 {[%clk 0:00:52]}  Ke7 {[%clk 0:01:06]} 17. Nec5 {[%clk 0:00:50]}  Rab8 {[%clk 0:01:04]} 18. Rad1 {[%clk 0:00:48]}  Rhd8 {[%clk 0:01:02]} 19. h5 {[%clk 0:00:45]}  a5 {[%clk 0:00:45]} 20. Be4 {[%clk 0:00:41]}  Ba8 {[%clk 0:00:41]} 21. Rd2 {[%clk 0:00:26]}  Nfd4 {[%clk 0:00:40]} 22. Nxd4 {[%clk 0:00:21]}  Nxd4 {[%clk 0:00:35]} 23. Bxa8 {[%clk 0:00:14]}  Bxc5 {[%clk 0:00:33]} 24. Be4 {[%clk 0:00:12]}  f5 {[%clk 0:00:31]} 25. exf6+ {[%clk 0:00:11]}  Kxf6 {[%clk 0:00:31]} 26. Bxb8 {[%clk 0:00:12]}  Rxb8 {[%clk 0:00:30]} 27. Rfd1 {[%clk 0:00:13]}  e5 {[%clk 0:00:29]} 28. c3 {[%clk 0:00:13]}  bxc3 {[%clk 0:00:18]} 29. bxc3 {[%clk 0:00:13]}  Ne6 {[%clk 0:00:18]} 30. Rxd7 {[%clk 0:00:13]}  Rb2 {[%clk 0:00:17]} 31. R7d2 {[%clk 0:00:12]}  Rb3 {[%clk 0:00:17]} 32. Rd3 {[%clk 0:00:10]}  Ng5 {[%clk 0:00:17]} 33. Bd5 {[%clk 0:00:10]}  Rb2 {[%clk 0:00:17]} 34. R3d2 {[%clk 0:00:10]}  Rb6 {[%clk 0:00:16]} 35. Kg2 {[%clk 0:00:10]}  e4 {[%clk 0:00:16]} 36. Re2 {[%clk 0:00:10]}  Ke5 {[%clk 0:00:16]} 37. c4 {[%clk 0:00:11]}  Rb3 {[%clk 0:00:16]} 38. Rde1 {[%clk 0:00:11]}  Rf3 {[%clk 0:00:14]} 39. Rxe4+ {[%clk 0:00:10]}  Kd6 {[%clk 0:00:13]} 40. Rf4 {[%clk 0:00:10]}  Ra3 {[%clk 0:00:11]} 41. Re2 {[%clk 0:00:10]}  Rxa4 {[%clk 0:00:11]} 42. Rf8 {[%clk 0:00:10]}  Ra3 {[%clk 0:00:09]} 43. f4 {[%clk 0:00:10]}  Nh7 {[%clk 0:00:08]} 44. Rf7 {[%clk 0:00:10]}  Be3 {[%clk 0:00:06]} 45. Rxg7 {[%clk 0:00:09]}  Nf6 {[%clk 0:00:06]} 46. Rg6 {[%clk 0:00:09]}  Bd4 {[%clk 0:00:03]} 47. Re6+ {[%clk 0:00:08]}  Kc5 {[%clk 0:00:03]} 48. Rgxf6 {[%clk 0:00:09]}  Bxf6 {[%clk 0:00:02]} 49. Rxf6 {[%clk 0:00:09]} 1-0


[Site "https://www.chess.com"]

[Event "Titled Tuesday Blitz February 14 Late 2023"]
[White "Cori T., Deysi"]
[Black "Kravtsiv, Martyn"]
[WhiteFideId "3801934"]
[BlackFideId "14113147"]
[WhiteElo "2362"]
[BlackElo "2598"]
[Result "0-1"]
[Round "05"]
[TimeControl "180+2"]
[Date "2023.02.14"]
[WhiteClock "0:00:01"]
[BlackClock "0:00:28"]

1. d4 {[%clk 0:03:00]}  g6 {[%clk 0:03:00]} 2. g3 {[%clk 0:03:00]}  Bg7 {[%clk 0:03:01]} 3. Bg2 {[%clk 0:03:01]}  Nf6 {[%clk 0:02:59]} 4. Nf3 {[%clk 0:03:01]}  O-O {[%clk 0:02:58]} 5. O-O {[%clk 0:03:01]}  b6 {[%clk 0:02:58]} 6. a4 {[%clk 0:02:56]}  Bb7 {[%clk 0:02:57]} 7. a5 {[%clk 0:02:56]}  bxa5 {[%clk 0:02:57]} 8. Rxa5 {[%clk 0:02:54]}  d6 {[%clk 0:02:56]} 9. Nc3 {[%clk 0:02:49]}  c5 {[%clk 0:02:52]} 10. Ra3 {[%clk 0:02:49]}  Nbd7 {[%clk 0:02:51]} 11. Qd3 {[%clk 0:02:32]}  cxd4 {[%clk 0:02:48]} 12. Nxd4 {[%clk 0:02:30]}  Ne5 {[%clk 0:02:46]} 13. Qb5 {[%clk 0:02:27]}  Bxg2 {[%clk 0:02:43]} 14. Kxg2 {[%clk 0:02:28]}  Qc8 {[%clk 0:02:40]} 15. Qa6 {[%clk 0:02:21]}  Nc4 {[%clk 0:02:31]} 16. Ra2 {[%clk 0:02:04]}  Nb6 {[%clk 0:02:08]} 17. Bg5 {[%clk 0:01:48]}  Qc5 {[%clk 0:01:40]} 18. Nf3 {[%clk 0:01:02]}  Qc6 {[%clk 0:01:24]} 19. Qb5 {[%clk 0:00:56]}  Qb7 {[%clk 0:01:10]} 20. Rfa1 {[%clk 0:00:55]}  Rfc8 {[%clk 0:01:05]} 21. Be3 {[%clk 0:00:55]}  Nfd7 {[%clk 0:01:02]} 22. Ra3 {[%clk 0:00:26]}  Bxc3 {[%clk 0:00:59]} 23. bxc3 {[%clk 0:00:26]}  Nc5 {[%clk 0:00:49]} 24. Kg1 {[%clk 0:00:19]}  a6 {[%clk 0:00:44]} 25. Qb4 {[%clk 0:00:19]}  Nd5 {[%clk 0:00:40]} 26. Qxb7 {[%clk 0:00:17]}  Nxb7 {[%clk 0:00:41]} 27. Bd2 {[%clk 0:00:16]}  Nc5 {[%clk 0:00:37]} 28. Nd4 {[%clk 0:00:15]}  Rab8 {[%clk 0:00:36]} 29. f3 {[%clk 0:00:15]}  Nb6 {[%clk 0:00:36]} 30. Be1 {[%clk 0:00:12]}  Nc4 {[%clk 0:00:37]} 31. R3a2 {[%clk 0:00:12]}  a5 {[%clk 0:00:33]} 32. e4 {[%clk 0:00:10]}  a4 {[%clk 0:00:33]} 33. Ne2 {[%clk 0:00:07]}  a3 {[%clk 0:00:31]} 34. Bf2 {[%clk 0:00:07]}  Na4 {[%clk 0:00:31]} 35. Rxa3 {[%clk 0:00:06]}  Nxa3 {[%clk 0:00:30]} 36. Rxa3 {[%clk 0:00:07]}  Rc4 {[%clk 0:00:29]} 37. Kg2 {[%clk 0:00:01]}  Rbc8 {[%clk 0:00:28]} 0-1


[Site "https://www.chess.com"]

[Event "Titled Tuesday Blitz February 14 Late 2023"]
[White "Mujumdar, Sameer"]
[Black "Ozen, Bahadir"]
[WhiteFideId "2029707"]
[BlackFideId "6337058"]
[WhiteElo "1992"]
[BlackElo "2369"]
[Result "0-1"]
[Round "05"]
[TimeControl "180+2"]
[Date "2023.02.14"]
[WhiteClock "0:00:16"]
[BlackClock "0:00:47"]

1. b3 {[%clk 0:03:00]}  d5 {[%clk 0:02:59]} 2. Bb2 {[%clk 0:03:01]}  Bf5 {[%clk 0:02:59]} 3. g3 {[%clk 0:02:59]}  e6 {[%clk 0:02:58]} 4. Bg2 {[%clk 0:02:59]}  h6 {[%clk 0:02:58]} 5. Nf3 {[%clk 0:02:59]}  Nf6 {[%clk 0:02:58]} 6. O-O {[%clk 0:03:00]}  Be7 {[%clk 0:02:57]} 7. c4 {[%clk 0:02:59]}  c6 {[%clk 0:02:56]} 8. d3 {[%clk 0:02:56]}  O-O {[%clk 0:02:55]} 9. Nc3 {[%clk 0:02:56]}  Nbd7 {[%clk 0:02:48]} 10. Qd2 {[%clk 0:02:48]}  Bh7 {[%clk 0:02:47]} 11. Rad1 {[%clk 0:02:46]}  a5 {[%clk 0:02:45]} 12. a3 {[%clk 0:02:46]}  Qb6 {[%clk 0:02:45]} 13. Qc2 {[%clk 0:02:43]}  Nc5 {[%clk 0:02:44]} 14. Nd2 {[%clk 0:02:39]}  Rfc8 {[%clk 0:02:40]} 15. e4 {[%clk 0:02:38]}  dxe4 {[%clk 0:02:36]} 16. Ncxe4 {[%clk 0:02:27]}  Nfxe4 {[%clk 0:02:33]} 17. dxe4 {[%clk 0:02:22]}  Rd8 {[%clk 0:02:31]} 18. Kh1 {[%clk 0:01:58]}  Nd3 {[%clk 0:02:29]} 19. Nb1 {[%clk 0:01:50]}  Nxb2 {[%clk 0:02:13]} 20. Qxb2 {[%clk 0:01:50]}  Bc5 {[%clk 0:02:06]} 21. f3 {[%clk 0:01:41]}  Bd4 {[%clk 0:02:04]} 22. Qc2 {[%clk 0:01:40]}  Qc5 {[%clk 0:01:58]} 23. Rd2 {[%clk 0:01:35]}  Rd7 {[%clk 0:01:57]} 24. Rfd1 {[%clk 0:01:33]}  Rad8 {[%clk 0:01:57]} 25. Nc3 {[%clk 0:01:33]}  Qxa3 {[%clk 0:01:52]} 26. Na4 {[%clk 0:01:28]}  Qb4 {[%clk 0:01:42]} 27. Bf1 {[%clk 0:01:23]}  e5 {[%clk 0:01:32]} 28. Bh3 {[%clk 0:01:21]}  Re7 {[%clk 0:01:31]} 29. Nc3 {[%clk 0:01:16]}  Ra8 {[%clk 0:01:20]} 30. Ne2 {[%clk 0:01:14]}  Bb6 {[%clk 0:01:18]} 31. Nc3 {[%clk 0:01:01]}  Kh8 {[%clk 0:01:04]} 32. Kg2 {[%clk 0:00:51]}  Bg8 {[%clk 0:01:03]} 33. Rd7 {[%clk 0:00:48]}  Rae8 {[%clk 0:00:56]} 34. Na4 {[%clk 0:00:45]}  Bd4 {[%clk 0:00:55]} 35. Rxe7 {[%clk 0:00:43]}  Rxe7 {[%clk 0:00:56]} 36. f4 {[%clk 0:00:33]}  f6 {[%clk 0:00:50]} 37. Bf5 {[%clk 0:00:33]}  b5 {[%clk 0:00:47]} 38. cxb5 {[%clk 0:00:32]}  cxb5 {[%clk 0:00:48]} 39. Nb2 {[%clk 0:00:29]}  Qxb3 {[%clk 0:00:46]} 40. Qxb3 {[%clk 0:00:21]}  Bxb3 {[%clk 0:00:47]} 41. Rb1 {[%clk 0:00:16]} 0-1


[Site "https://www.chess.com"]

[Event "Titled Tuesday Blitz February 14 Late 2023"]
[White "Jimenez Garcia, Emmanuel"]
[Black "Pulpan, Jakub"]
[WhiteFideId "6504779"]
[BlackFideId "302759"]
[WhiteElo "2410"]
[BlackElo "2427"]
[Result "1-0"]
[Round "05"]
[TimeControl "180+2"]
[Date "2023.02.14"]
[WhiteClock "0:00:24"]
[BlackClock "0:00:06"]

1. Nf3 {[%clk 0:03:00]}  a5 {[%clk 0:02:37]} 2. g3 {[%clk 0:02:58]}  b5 {[%clk 0:02:34]} 3. Bg2 {[%clk 0:02:58]}  Bb7 {[%clk 0:02:35]} 4. O-O {[%clk 0:02:58]}  Nf6 {[%clk 0:02:33]} 5. d3 {[%clk 0:02:46]}  d5 {[%clk 0:02:24]} 6. c4 {[%clk 0:02:42]}  c6 {[%clk 0:02:22]} 7. Nc3 {[%clk 0:02:36]}  b4 {[%clk 0:02:19]} 8. Na4 {[%clk 0:02:36]}  e6 {[%clk 0:02:17]} 9. Be3 {[%clk 0:02:34]}  Nbd7 {[%clk 0:02:13]} 10. Rc1 {[%clk 0:02:32]}  Be7 {[%clk 0:02:07]} 11. h3 {[%clk 0:02:26]}  O-O {[%clk 0:01:41]} 12. Nd2 {[%clk 0:02:23]}  Rc8 {[%clk 0:01:36]} 13. Nb3 {[%clk 0:02:21]}  e5 {[%clk 0:01:32]} 14. cxd5 {[%clk 0:02:08]}  Nxd5 {[%clk 0:01:32]} 15. Bc5 {[%clk 0:02:06]}  Nxc5 {[%clk 0:01:31]} 16. Nbxc5 {[%clk 0:02:04]}  Ba8 {[%clk 0:01:31]} 17. Qb3 {[%clk 0:01:55]}  h5 {[%clk 0:01:26]} 18. Rc4 {[%clk 0:01:32]}  h4 {[%clk 0:01:22]} 19. d4 {[%clk 0:01:07]}  hxg3 {[%clk 0:01:06]} 20. Qxg3 {[%clk 0:01:07]}  Bh4 {[%clk 0:00:52]} 21. Qf3 {[%clk 0:01:00]}  Bf6 {[%clk 0:00:32]} 22. dxe5 {[%clk 0:00:59]}  Bxe5 {[%clk 0:00:33]} 23. Qh5 {[%clk 0:00:46]}  Re8 {[%clk 0:00:26]} 24. Rh4 {[%clk 0:00:37]}  g6 {[%clk 0:00:26]} 25. Qh7+ {[%clk 0:00:37]}  Kf8 {[%clk 0:00:26]} 26. Re4 {[%clk 0:00:32]}  Rc7 {[%clk 0:00:13]} 27. Rxe5 {[%clk 0:00:30]}  Qf6 {[%clk 0:00:08]} 28. Qh6+ {[%clk 0:00:25]}  Qg7 {[%clk 0:00:05]} 29. Rxe8+ {[%clk 0:00:24]}  Kxe8 {[%clk 0:00:06]} 30. Qxg7 {[%clk 0:00:24]}  Re7 {[%clk 0:00:06]} 31. Qg8# {[%clk 0:00:24]} 1-0


[Site "https://www.chess.com"]